bitfinex-derivatives/quotes_ETHF0:USTF0_20250620
["timestamp","ask_amount","ask_price","bid_price","bid_amount"]
[1750444222364,0.29474126,2419.5,2419.4,0.82658]
[1750444222860,2.0777,2419.6,2419.5,0.82655]
[1750444223462,0.82642,2419.9,2419.3,3.2078]
[1750444223664,7.19214041,2419.7,2419.6,0.82652]
[1750444224166,1.9876,2419.8,2419.7,0.82648]
[1750444224465,9.17974041,2419.8,2419.7,0.82648]
[1750444224665,9.17974041,2419.8,2419.6,3.2078]
[1750444224666,9.47448167,2419.8,2419.6,4.03429]
[1750444224873,0.29474126,2419.7,2419.6,4.03429]
[1750444225363,18.67024315,2419.7,2419.4,1.9265]
[1750444225566,7.19214041,2419.5,2419.4,0.82657]
[1750444225969,2.25394126,2419.5,2419.4,0.82657]
[1750444226662,14.09439148,2419.9,2419.3,10.8268]
[1750444226862,7.19214041,2419.7,2419.6,0.82649]
[1750444227263,8.31336167,2419.7,2419.5,0.82653]
[1750444227469,1.9592,2419.6,2419.5,0.82653]
[1750444228269,10.27262167,2419.6,2419.4,0.82657]
[1750444228470,0.29474126,2419.5,2419.4,0.82657]
[1750444228768,2.42744126,2419.5,2419.4,0.82657]
[1750444228964,2.0418,2419.8,2419.7,0.82648]
[1750444229368,7.48688167,2419.8,2419.7,0.82648]
[1750444229765,3.2078,2420.0,2419.7,9.68519]
[1750444230069,2.1327,2420.1,2420.0,0.82638]
[1750444230267,9.32484041,2420.1,2420.0,0.82638]
[1750444230464,9.61958167,2420.1,2420.0,0.82638]
[1750444230863,2.42744126,2420.1,2420.0,0.82638]
[1750444231357,1.8833,2420.4,2420.0,3.2078]
[1750444231560,7.48688167,2420.3,2420.1,0.82635]
[1750444231755,9.48448167,2420.3,2420.2,0.82631]
[1750444232762,10.31076167,2420.3,2420.2,0.82631]
[1750444233173,9.48448167,2420.3,2420.2,0.82631]
[1750444233757,9.18974041,2420.3,2420.2,0.82631]
[1750444233970,9.48448167,2420.3,2420.2,0.82631]
[1750444234860,9.48448167,2420.3,2419.7,6.06721]
[1750444235062,7.19214041,2420.1,2420.0,0.82638]
[1750444235470,0.29474126,2420.1,2420.0,3.2078]
[1750444235765,0.29474126,2420.1,2420.0,4.03418]
[1750444235967,1.9976,2420.3,2420.2,0.82631]
[1750444236167,0.29474126,2420.3,2420.2,0.82631]
[1750444236562,0.82636,2420.1,2419.7,7.2088]
[1750444236871,7.19214041,2420.1,2420.0,0.82638]
[1750444237063,0.8263,2420.3,2420.1,0.82632]
[1750444237259,1.12104126,2420.3,2420.1,0.82632]
[1750444237458,7.48688167,2420.2,2420.1,0.82632]
[1750444238064,8.31319167,2420.2,2420.1,0.82632]
[1750444238271,0.82645,2419.8,2419.7,6.16026]
[1750444238469,8.01860041,2419.8,2419.4,12.89124]
[1750444238672,7.19214041,2419.5,2419.4,8.44358]
[1750444238872,7.48688167,2419.5,2419.4,0.82658]
[1750444240177,0.82658,2419.4,2419.3,3.2078]
[1750444240373,7.48688167,2419.4,2419.3,0.82662]
[1750444240670,8.31347167,2419.4,2419.2,0.82662]
[1750444240975,7.48688167,2419.3,2419.2,0.82662]
[1750444241376,0.29474126,2419.3,2419.2,0.82662]
[1750444244972,1.12136126,2419.3,2419.0,0.06933781]
[1750444245273,0.29474126,2419.3,2419.2,0.82665]
[1750444245977,0.29474126,2419.3,2419.0,0.06933781]
[1750444246176,2.0316,2419.5,2419.0,0.06933781]
[1750444246177,8.31357167,2419.1,2419.0,0.06933781]
[1750444246679,0.82685,2418.7,2418.6,0.82685]
[1750444246881,8.31371167,2418.7,2418.6,0.82685]
[1750444247679,7.48688167,2418.7,2418.6,0.82685]
[1750444248074,5.7723,2419.1,2418.7,2.06707]
[1750444248272,7.19214041,2418.9,2418.6,0.82685]
[1750444248473,7.19214041,2418.9,2418.8,0.82679]
[1750444248676,0.29474126,2418.9,2418.8,0.82679]
[1750444249271,1.12150126,2418.9,2418.8,0.82679]
[1750444249480,7.48688167,2418.9,2418.6,0.82684]
[1750444249677,8.01900041,2418.6,2418.5,4.03467]
[1750444249877,8.01901041,2418.6,2418.4,7.574]
[1750444250083,0.29474126,2418.5,2418.4,8.40093]
[1750444250380,7.48688167,2418.5,2418.4,8.40093]
[1750444250574,13.25025148,2419.0,2418.5,0.82689]
[1750444250575,0.82686,2418.6,2418.5,0.82689]
[1750444250778,1.9681,2418.6,2418.5,0.82689]
[1750444250982,9.45498167,2418.6,2418.5,0.82689]
[1750444251180,9.45498167,2418.6,2418.4,0.89624781]
[1750444251181,0.82689,2418.5,2418.4,0.89624781]
[1750444251382,10.28187167,2418.5,2418.4,0.06933781]
[1750444251878,0.82693,2418.4,2418.3,0.82695]
[1750444252073,3.08977126,2418.4,2418.3,0.82695]
[1750444252279,10.28191167,2418.4,2418.3,0.82695]
[1750444252585,9.45498167,2418.4,2418.3,0.82695]
[1750444252886,10.28191167,2418.4,2418.3,0.82695]
[1750444253983,2.0262,2418.6,2418.5,0.82689]
[1750444254285,3.808,2418.9,2418.8,0.82679]
[1750444254484,11.00014041,2418.9,2418.8,4.03459]
[1750444254686,11.29488167,2418.9,2418.8,4.03459]
[1750444255375,0.82679,2418.8,2418.7,0.8268]
[1750444255579,9.34758167,2418.8,2418.7,0.82682]
[1750444256683,9.34758167,2418.8,2418.7,4.03462]
[1750444258486,10.17437167,2418.8,2418.7,4.03462]
[1750444258688,9.34758167,2418.8,2418.7,4.03462]
[1750444261481,3.808,2419.0,2418.7,9.03462]
[1750444261681,3.808,2419.0,2418.9,0.82675]
[1750444262183,1.8614,2419.5,2419.4,0.82658]
[1750444262480,1.8614,2419.8,2419.7,0.82648]
[1750444262682,9.34828167,2419.8,2419.7,0.82648]
[1750444262988,18.56874,2419.8,2418.7,3.2078]
[1750444263179,7.19214041,2419.0,2418.9,0.82672]
[1750444263584,7.48688167,2419.0,2418.9,0.82672]
[1750444264190,0.29474126,2419.0,2418.9,0.82672]
[1750444264380,0.8267,2419.1,2418.7,3.2078]
[1750444264582,0.82679,2418.8,2418.6,1.9484]
[1750444264783,18.67024315,2418.7,2418.2,0.57292]
[1750444264992,7.19214041,2418.3,2418.2,1.39991]
[1750444265483,7.48688167,2418.3,2418.2,0.57292]
[1750444265681,7.48688167,2418.3,2418.2,1.39991]
[1750444266891,8.31384167,2418.3,2418.2,0.57292]
[1750444267188,7.48688167,2418.3,2418.2,0.57292]
[1750444267387,7.48688167,2418.3,2418.2,1.39991]
[1750444267588,8.31384167,2418.3,2418.2,0.57292]
[1750444268087,7.48688167,2418.3,2418.2,1.39991]
[1750444268687,7.48688167,2418.3,2418.2,0.57292]
[1750444269305,3.7732,2418.7,2418.2,0.57292]
[1750444269585,3.7268,2419.2,2418.6,3.2078]
[1750444269785,0.82679,2418.9,2418.6,3.2078]
[1750444269990,0.82679,2418.9,2418.5,0.82687]
[1750444270186,0.82679,2418.9,2418.3,5.1496]
[1750444270187,0.82679,2418.9,2418.8,3.2078]
[1750444270393,11.18336148,2418.9,2418.5,3.2078]
[1750444270585,11.18336148,2418.6,2418.2,0.57292]
[1750444270791,12.01032148,2418.3,2418.2,0.57292]
[1750444271988,3.7268,2418.5,2418.2,0.57292]
[1750444272295,3.7268,2418.5,2418.4,3.2078]
[1750444273094,3.7268,2418.5,2418.2,0.57292]
[1750444273295,0.82696,2418.3,2418.2,0.57292]
[1750444273891,4.55371,2418.5,2418.2,1.3999]
[1750444274096,12.13071,2418.5,2418.2,1.3999]
[1750444274300,11.3038,2418.5,2418.2,0.57292]
[1750444274794,0.82696,2418.3,2418.2,0.57292]
[1750444275191,0.82695,2418.4,2418.2,0.57292]
[1750444275396,0.82693,2418.4,2418.2,0.57292]
[1750444275998,12.13069,2418.5,2418.3,0.82694]
[1750444276198,11.2588,2418.5,2418.4,3.2078]
[1750444276395,1.8473,2418.5,2418.4,4.03473]
[1750444276604,2.82534,2419.0,2418.4,3.2078]
[1750444276793,2.0156518,2418.9,2418.6,0.82686]
[1750444277099,12.01016148,2418.8,2418.7,3.2078]
[1750444277801,0.8268,2418.8,2418.7,3.2078]
[1750444277993,35.9448,2418.8,2418.7,3.2078]
[1750444280094,47.12816148,2418.8,2418.7,3.2078]
[1750444280296,0.82696,2418.3,2418.2,0.57292]
[1750444280492,28.40496,2418.3,2418.2,0.57292]
[1750444280892,30.40226,2418.3,2418.2,0.57292]
[1750444281092,2.82426,2418.3,2418.2,0.57292]
[1750444281492,0.82703,2418.1,2418.0,3.2078]
[1750444282095,2.06772,2418.0,2417.6,3.2078]
[1750444282289,1.9211,2417.9,2417.8,0.82713]
[1750444282696,2.8244,2417.9,2417.8,0.82713]
[1750444283096,1.9973,2417.9,2417.6,3.2078]
[1750444283396,0.82717,2417.7,2417.6,4.03497]
[1750444283596,1.9973,2417.9,2417.6,3.2078]
[1750444283797,2.8244,2417.9,2417.8,0.82713]
[1750444284314,1.9973,2417.9,2417.6,3.2078]
[1750444284503,0.82714,2417.8,2417.7,0.82716]
[1750444284706,0.82717,2417.7,2417.6,4.03499]
[1750444284894,0.82716,2417.8,2417.6,4.03499]
[1750444285390,2.82442,2417.9,2417.7,0.82717]
[1750444285590,27.566,2418.0,2417.6,5.27578]
[1750444285799,28.39306,2418.0,2417.9,3.2078]
[1750444286003,0.82716,2417.8,2417.6,3.2078]
[1750444286206,2.71236,2417.7,2417.6,4.03499]
[1750444286701,1.8852,2417.7,2417.6,4.03499]
[1750444287099,28.39307,2418.0,2417.6,3.2078]
[1750444287304,0.82707,2418.0,2417.9,3.2078]
[1750444287600,2.71227,2418.0,2417.9,3.2078]
[1750444289205,30.26927,2418.0,2417.9,3.2078]
[1750444289495,0.82682,2418.7,2418.6,0.06933781]
[1750444289704,9.45342,2418.7,2418.6,0.06933781]
[1750444289900,6.24562,2418.7,2418.6,0.06933781]
[1750444290401,5.4188,2418.7,2418.6,0.06933781]
[1750444290599,6.24562,2418.7,2418.6,0.06933781]
[1750444290800,1.8814,2418.7,2418.6,0.89619781]
[1750444291505,9.4514,2419.0,2418.6,0.06933781]
[1750444291814,1.8814,2418.9,2418.8,4.03458]
[1750444291995,1.8814,2419.4,2418.8,16.45812148]
[1750444292195,2.708,2419.4,2419.3,3.2078]
[1750444292805,2.94420716,2419.4,2419.3,3.2078]
[1750444294104,7.94420716,2419.4,2419.3,3.2078]
[1750444294398,2.94420716,2419.4,2419.3,4.03442]
[1750444294701,23.99006148,2420.1,2419.3,3.2078]
[1750444294896,0.82647,2419.8,2419.7,0.82647]
[1750444295402,1.8715,2419.9,2419.8,0.82645]
[1750444296493,2.69791,2419.9,2419.8,0.82645]
[1750444296906,1.8715,2419.9,2419.8,0.82645]
[1750444297096,2.1608,2420.1,2420.0,0.82638]
[1750444297293,2.1608,2420.1,2420.0,4.03418]
[1750444298194,2.06596,2420.0,2419.7,3.2078]
[1750444298398,2.06596,2420.0,2419.4,1.761]
[1750444298399,0.82655,2419.5,2419.4,1.761]
[1750444298700,0.82662,2419.4,2419.2,3.2078]
[1750444298895,0.82649,2419.7,2419.2,3.2078]
[1750444299100,16.98426148,2420.0,2419.7,0.82646]
[1750444299101,1.85,2419.9,2419.7,0.82646]
[1750444299301,0.82643,2419.9,2419.7,0.82646]
[1750444299500,0.82643,2419.9,2419.8,3.2078]
[1750444299708,2.1608,2420.1,2420.0,0.82638]
[1750444300011,0.82641,2419.9,2419.8,5.0429]
[1750444300703,2.67641,2419.9,2419.8,5.0429]
[1750444300911,0.82648,2419.7,2419.6,1.7888]
[1750444301214,0.82662,2419.3,2419.2,3.2078]
[1750444301609,4.66073,2419.6,2419.2,3.2078]
[1750444301805,2.75153,2419.6,2419.5,3.2078]
[1750444302212,0.8266,2419.4,2419.2,3.2078]
[1750444302512,1.925,2419.6,2419.2,3.2078]
[1750444302513,1.925,2419.6,2419.3,0.8266]
[1750444302711,0.82656,2419.5,2419.3,0.8266]
[1750444303014,0.82656,2419.5,2419.4,3.2078]
[1750444303604,3.2078,2419.8,2419.4,3.2078]
[1750444303804,11.18336148,2421.6,2420.0,3.2078]
[1750444304005,2.75097,2421.2,2421.1,3.2078]
[1750444304315,1.925,2421.2,2421.1,3.2078]
[1750444304508,1.925,2421.2,2421.1,4.0338]
[1750444304807,1.925,2421.2,2421.1,3.2078]
[1750444305009,0.82587,2421.5,2421.1,3.2078]
[1750444305215,1.8055,2421.4,2421.1,0.82599]
[1750444305408,1.8055,2421.4,2421.3,3.2078]
[1750444305707,1.8055,2421.4,2421.3,4.03374]
[1750444305913,2.6646,2422.0,2421.3,3.2078]
[1750444306105,4.40213,2421.9,2421.8,3.2078]
[1750444306305,11.89513,2421.9,2421.8,3.2078]
[1750444306906,11.89513,2421.9,2420.8,2.95826]
[1750444306907,0.82588,2421.5,2421.2,3.2078]
[1750444307113,1.8055,2421.4,2421.3,3.2078]
[1750444308309,2.6314,2421.4,2421.3,3.2078]
[1750444309322,1.8055,2421.4,2421.3,3.2078]
[1750444309813,1.8055,2421.4,2421.3,4.03374]
[1750444310415,1.8389,2422.0,2421.8,0.82577]
[1750444310714,1.7513,2422.1,2421.9,4.03353]
[1750444311013,1.7513,2422.1,2422.0,0.8257]
[1750444311217,1.7513,2422.1,2421.9,4.03351]
[1750444311519,1.7513,2422.1,2422.0,0.8257]
[1750444311721,1.7513,2422.1,2421.9,3.2078]
[1750444312018,1.7513,2422.1,2421.9,4.03351]
[1750444312214,1.7513,2422.1,2422.0,0.8257]
[1750444312414,11.1876,2422.4,2421.9,3.2078]
[1750444312618,11.1876,2422.4,2422.3,3.2078]
[1750444312812,12.26707678,2422.4,2422.3,3.2078]
[1750444313009,0.8257,2422.1,2421.9,3.2078]
[1750444313217,0.82568,2422.1,2421.9,3.2078]
[1750444313615,3.6976,2422.4,2421.9,3.2078]
[1750444313815,8.31454,2422.5,2422.3,3.2078]
[1750444314120,7.489,2422.5,2422.3,3.2078]
[1750444314413,1.8196,2422.8,2422.3,3.2078]
[1750444314620,8.31447,2422.7,2422.6,3.2078]
[1750444315119,7.489,2423.0,2422.6,3.2078]
[1750444315416,0.82544,2422.8,2422.6,3.2078]
[1750444315715,0.82546,2422.7,2422.6,3.2078]
[1750444315918,7.489,2423.0,2422.6,4.03328]
[1750444316122,8.31436,2423.0,2422.9,3.2078]
[1750444316721,2.67215,2423.1,2422.9,3.2078]
[1750444316916,0.82536,2423.0,2422.9,3.2078]
[1750444317815,0.82539,2422.9,2422.7,0.82545]
[1750444318114,1.8468,2423.1,2422.6,3.2078]
[1750444318324,0.82544,2422.8,2422.6,4.03328]
[1750444318620,0.82541,2422.9,2422.6,4.03328]
[1750444318822,0.82538,2423.0,2422.7,0.82546]
[1750444319021,0.82538,2423.0,2422.9,3.2078]
[1750444319224,2.67215,2423.1,2422.9,3.2078]
[1750444319414,3.2078,2423.4,2422.9,3.2078]
[1750444319615,7.486,2423.4,2423.2,3.2078]
[1750444320018,7.486,2423.4,2423.2,4.03307]
[1750444320221,2.15704841,2423.7,2423.2,5.27096]
[1750444320417,0.25024841,2423.7,2423.6,4.03295]
[1750444320615,3.6856,2424.4,2423.6,5.27067]
[1750444320819,3.2078,2424.9,2424.3,3.2078]
[1750444321019,9.3087,2425.1,2424.3,15.92227377]
[1750444321218,0.82472,2424.9,2424.6,0.82479]
[1750444321422,0.82474,2424.8,2424.7,3.2078]
[1750444321619,9.3087,2425.1,2424.7,3.2078]
[1750444321833,0.06933781,2425.6,2425.0,3.2078]
[1750444322017,0.90698722,2425.5,2425.1,0.82463]
[1750444322227,0.08246062,2425.4,2425.0,3.2078]
[1750444322528,0.08246062,2425.4,2423.9,4.12526]
[1750444322529,12.71447377,2425.1,2423.2,15.02797843]
[1750444322722,3.2078,2424.3,2423.7,3.2078]
[1750444323023,3.2078,2424.3,2423.5,3.5448]
[1750444323024,12.71447377,2424.2,2423.5,3.5448]
[1750444323219,0.82515,2423.6,2423.3,0.82524]
[1750444323422,0.82519,2423.5,2423.2,0.82527]
[1750444323621,3.2078,2424.0,2423.3,3.2078]
[1750444323919,7.483,2424.0,2423.3,4.03305]
[1750444324126,0.82517,2423.6,2423.3,4.03305]
[1750444324326,0.8252,2423.5,2423.3,3.2078]
[1750444324621,5.27059,2423.8,2423.1,7.483]
[1750444324817,3.2078,2423.8,2423.1,7.483]
[1750444325018,5.27057,2423.8,2423.1,7.483]
[1750444325221,0.82527,2423.3,2423.1,7.483]
[1750444325423,0.82525,2423.4,2423.1,8.30832]
[1750444325625,3.2078,2423.8,2423.1,7.483]
[1750444325815,0.82527,2423.3,2423.1,7.483]
[1750444326222,10.6908,2423.8,2423.1,7.483]
[1750444326424,0.82527,2423.3,2423.1,7.483]
[1750444326622,0.82529,2423.2,2423.1,7.483]
[1750444326829,10.6908,2423.8,2423.1,7.483]
[1750444327030,0.82524,2423.4,2423.1,8.30831]
[1750444327329,0.82529,2423.2,2423.1,7.483]
[1750444327530,2.06307,2423.4,2422.9,3.6501]
[1750444327730,0.82536,2423.0,2422.9,3.6501]
[1750444328228,2.06307,2423.4,2422.9,3.6501]
[1750444328427,0.82536,2423.0,2422.9,3.6501]
[1750444329027,3.2078,2423.9,2423.2,0.82527]
[1750444329345,0.82517,2423.6,2423.2,4.03308]
[1750444329917,3.2078,2423.9,2423.2,3.2078]
[1750444330124,2.06273,2423.8,2423.2,4.03309]
[1750444330626,0.82521,2423.5,2423.2,3.2078]
[1750444330827,0.82521,2423.5,2423.3,0.82524]
[1750444331020,0.82518,2423.6,2423.3,0.82524]
[1750444331229,0.82518,2423.6,2423.4,0.8252]
[1750444331426,2.61455,2423.7,2423.2,3.2078]
[1750444331622,1.7894,2423.7,2423.6,0.82516]
[1750444331825,3.7159,2424.1,2423.7,0.8251]
[1750444332029,12.4592,2424.2,2423.8,4.03288]
[1750444332321,2.5944,2424.1,2423.8,4.03288]
[1750444332523,1.7694,2424.1,2423.8,3.2078]
[1750444332732,2.59439,2424.1,2423.9,0.82504]
[1750444333237,2.59439,2424.1,2423.8,4.03286]
[1750444333534,2.5944,2424.1,2423.9,0.82505]
[1750444333926,3.83189,2424.1,2423.6,1.8115]
[1750444334237,3.83189,2424.1,2423.0,1.9124]
[1750444334238,2.06295,2423.6,2423.0,1.9124]
[1750444334533,2.06295,2423.6,2423.4,0.82522]
[1750444334534,1.7694,2423.5,2423.4,0.82522]
[1750444335229,2.67885,2424.0,2423.8,0.82508]
[1750444335430,0.825,2424.1,2423.9,0.82505]
[1750444335632,1.7751,2424.2,2424.1,0.82499]
[1750444335828,0.825,2424.1,2423.9,0.82503]
[1750444336031,1.7751,2424.2,2423.8,3.86912]
[1750444336231,1.8785,2424.5,2424.2,0.82494]
[1750444336535,0.82497,2424.2,2424.0,4.0328]
[1750444336840,0.82499,2424.1,2424.0,3.2078]
[1750444337127,0.82499,2424.1,2424.0,4.03282]
[1750444337128,2.60009,2424.1,2424.0,4.03282]
[1750444337336,0.82497,2424.2,2424.0,3.2078]
[1750444337534,0.82498,2424.2,2424.0,4.0328]
[1750444337736,1.7754,2424.1,2424.0,4.0328]
[1750444338037,2.60039,2424.1,2424.0,4.0328]
[1750444338225,1.7754,2424.1,2424.0,4.0328]
[1750444338430,7.473,2424.4,2424.0,3.2078]
[1750444338632,2.60033,2424.3,2424.1,0.82496]
[1750444339131,2.60033,2424.3,2424.0,3.2078]
[1750444339132,1.7754,2424.3,2424.2,0.82495]
[1750444339437,0.82495,2424.2,2424.0,4.0328]
[1750444339628,14.62145,2424.5,2424.0,4.0328]
[1750444339629,2.60039,2424.1,2424.0,3.2078]
[1750444340435,1.7754,2424.1,2424.0,0.82502]
[1750444340641,2.9463898,2424.1,2423.8,3.8691]
[1750444340835,1.7754,2424.1,2424.0,0.82502]
[1750444341839,12.5583,2424.5,2424.1,0.82497]
[1750444342133,3.83331414,2424.4,2424.3,0.82492]
[1750444342334,3.00840414,2424.4,2424.3,0.82492]
[1750444342633,1.17140414,2424.4,2424.3,4.03272]
[1750444342834,2.4382824,2424.9,2424.6,0.82482]
[1750444342835,1.837,2424.7,2424.6,0.82482]
[1750444343029,0.82469,2425.0,2424.8,0.82475]
[1750444343226,1.17162564,2424.9,2424.8,0.82475]
[1750444343529,1.837,2425.0,2424.9,0.82471]
[1750444343727,3.00822068,2425.0,2424.6,3.2078]
[1750444343932,1.837,2425.0,2424.5,1.8064]
[1750444344133,1.17199205,2424.9,2424.5,1.8064]
[1750444344333,3.00169205,2424.8,2424.6,0.8248]
[1750444344538,1.17199205,2424.7,2424.2,7.472]
[1750444344739,3.00169205,2424.6,2424.5,0.82485]
[1750444345836,1.17199205,2424.6,2424.5,0.82485]
[1750444346036,0.82473,2424.9,2424.4,3.2078]
[1750444346238,3.00158925,2424.8,2424.7,0.82476]
[1750444346637,1.8297,2424.8,2424.7,0.82476]
[1750444346838,12.04249,2425.3,2425.1,0.82462]
[1750444347135,1.17211924,2425.2,2425.1,0.82462]
[1750444347334,3.05461924,2425.2,2425.0,0.82466]
[1750444347537,1.17211924,2425.1,2425.0,0.82466]
[1750444347736,3.05461924,2425.1,2425.0,0.82466]
[1750444348038,0.82468,2425.0,2424.9,0.8247]
[1750444348332,3.7459,2425.3,2425.1,0.82465]
[1750444348538,3.87889104,2425.2,2424.8,3.88786]
[1750444348734,1.17178104,2425.1,2425.0,0.82465]
[1750444348934,3.05428104,2425.1,2425.0,0.82465]
[1750444349338,3.87893104,2425.1,2425.0,0.82465]
[1750444349534,3.87893104,2425.1,2424.9,0.82468]
[1750444349737,0.82474,2424.9,2424.7,4.03256]
[1750444349940,3.7459,2425.3,2424.9,0.82471]
[1750444350140,0.82468,2425.0,2424.9,0.82471]
[1750444350640,1.9022,2425.1,2425.0,0.82468]
[1750444350840,3.89627938,2425.1,2425.0,0.82468]
[1750444351336,3.89634508,2425.1,2425.0,0.82468]
[1750444351637,2.72685,2425.1,2425.0,0.82468]
[1750444351843,0.82469,2425.0,2424.7,3.2078]
[1750444352037,1.9022,2424.9,2424.8,0.82475]
[1750444352435,4.5705,2425.3,2425.1,0.82462]
[1750444352635,1.16922446,2425.2,2425.1,0.82462]
[1750444352835,3.07142446,2425.2,2425.1,0.82462]
[1750444353233,0.82471,2424.9,2424.8,1.7929]
[1750444353434,0.82471,2424.9,2424.7,3.2078]
[1750444353744,1.7805,2424.8,2424.7,4.03258]
[1750444354738,1.9263,2425.3,2424.8,2.06184]
[1750444354944,3.7068,2425.3,2425.2,0.82461]
[1750444355142,5.70025767,2425.3,2425.1,0.82463]
[1750444355343,3.7068,2425.3,2424.8,2.06184]
[1750444355637,4.53139,2425.3,2425.1,0.82463]
[1750444356145,0.82462,2425.2,2424.8,2.06184]
[1750444356342,2.71568,2425.1,2424.9,0.82469]
[1750444356542,1.891,2425.1,2425.0,0.82468]
[1750444357646,1.891,2425.1,2424.7,3.81545]
[1750444357647,1.891,2425.1,2424.7,1.7535]
[1750444357840,0.82473,2424.9,2424.7,2.57827]
[1750444358035,1.891,2424.8,2424.0,3.2078]
[1750444358238,3.23122474,2424.7,2424.0,1.8112]
[1750444358437,3.06025474,2424.6,2424.1,2.06248]
[1750444358645,1.891,2424.6,2424.3,0.82491]
[1750444358839,0.82489,2424.4,2424.3,0.82491]
[1750444359041,0.82489,2424.4,2424.2,0.82494]
[1750444359242,1.8484,2424.3,2424.2,0.82494]
[1750444360941,3.2078,2424.5,2424.4,0.82489]
[1750444361144,1.8484,2424.6,2424.5,0.82486]
[1750444361448,3.2078,2424.9,2424.8,0.82475]
[1750444361650,0.82466,2425.1,2424.7,2.06198]
[1750444361651,1.8484,2425.1,2424.7,2.06198]
[1750444361839,1.8484,2425.1,2425.0,0.82469]
[1750444362952,2.67305,2425.1,2425.0,0.82469]
[1750444363340,1.8484,2425.1,2424.6,1.8417]
[1750444363547,0.82478,2424.8,2424.6,0.82481]
[1750444363747,2.56859,2424.7,2424.4,7.47]
[1750444364045,1.7438,2424.7,2424.6,0.82482]
[1750444365555,3.2078,2425.0,2424.9,0.82472]
[1750444366147,5.0481,2425.0,2424.9,0.82472]
[1750444366351,5.8728,2425.0,2424.9,0.82472]
[1750444366551,5.0481,2425.0,2424.9,0.82472]
[1750444367454,1.8403,2425.0,2424.9,0.82472]
[1750444368150,0.82472,2424.9,2424.8,0.82475]
[1750444368355,2.66501,2425.0,2424.8,0.82475]
[1750444368656,2.66501,2425.0,2424.9,0.82472]
[1750444368958,1.8403,2425.0,2424.9,0.82472]
[1750444369463,2.66501,2425.0,2424.8,0.82473]
[1750444369662,2.66501,2425.0,2424.9,0.82472]
[1750444369958,1.8403,2425.0,2424.9,0.82472]
[1750444370357,2.66499,2425.0,2424.8,0.82473]
[1750444370656,1.8403,2425.0,2424.9,0.82472]
[1750444370861,0.82474,2424.9,2424.5,12.73194]
[1750444371049,1.7905,2424.8,2424.7,0.82479]
[1750444372059,5.0432,2425.3,2424.8,2.0619]
[1750444372261,5.0432,2425.3,2424.6,2.062]
[1750444372262,0.82465,2425.1,2424.6,2.062]
[1750444372557,1.7976,2425.0,2424.9,0.82469]
[1750444373264,2.62229,2425.0,2424.9,0.82469]
[1750444373761,1.7976,2425.0,2424.9,0.82469]
[1750444374059,2.62229,2425.0,2424.9,0.82469]
[1750444374255,1.7976,2425.0,2424.9,0.82469]
[1750444379172,3.2078,2425.2,2425.1,0.82465]
[1750444379362,1.7503,2425.3,2425.2,0.82462]
[1750444379567,6.9417,2425.8,2425.7,0.82445]
[1750444380067,7.76611,2425.8,2425.7,0.82445]
[1750444380265,6.9417,2425.8,2425.7,0.82445]
[1750444380972,5.0801,2425.8,2425.7,0.82445]
[1750444381463,6.819,2425.8,2425.7,0.82445]
[1750444381870,3.6112,2425.8,2425.7,0.82445]
[1750444382270,1.7389,2425.8,2425.7,0.82445]
[1750444384878,3.2078,2426.1,2426.0,0.82435]
[1750444385276,4.9264,2426.1,2426.0,0.82435]
[1750444385772,3.2078,2426.4,2426.1,0.8243]
[1750444385972,4.49557,2426.3,2426.1,0.8243]
[1750444386475,0.82428,2426.2,2425.8,10.6678]
[1750444386677,3.6713,2426.3,2426.2,0.82428]
[1750444387079,3.6094,2426.3,2426.2,0.82428]
[1750444387376,1.7754,2426.3,2426.2,0.82428]
[1750444387675,5.0329,2426.7,2426.5,0.82416]
[1750444387877,6.8083,2426.7,2426.6,0.82414]
[1750444388079,4.9832,2426.7,2426.6,0.82414]
[1750444388381,1.7754,2426.7,2426.6,0.82414]
[1750444388674,11.1328035,2426.8,2426.1,5.0226]
[1750444388876,0.82439,2425.9,2425.6,7.46]
[1750444389086,2.06088,2426.0,2425.6,7.46]
[1750444389377,3.2078,2426.1,2425.3,0.82457]
[1750444389378,3.2078,2425.7,2425.3,0.82457]
[1750444389579,3.6735,2425.6,2425.4,0.82455]
[1750444389873,3.6735,2425.6,2425.0,13.1945035]
[1750444389874,8.94254,2425.6,2425.0,0.82468]
[1750444390079,1.8514,2425.5,2424.8,18.5918035]
[1750444390276,1.8484,2425.4,2425.3,0.82459]
[1750444390581,5.88076,2425.4,2425.1,0.82463]
[1750444390782,2.67296,2425.4,2425.0,10.6668]
[1750444390979,2.67296,2425.4,2425.2,0.82462]
[1750444391282,1.8484,2425.4,2425.2,0.82462]
[1750444391479,1.8484,2425.4,2425.2,0.8246]
[1750444391781,2.67295,2425.4,2425.2,0.8246]
[1750444391982,1.8484,2425.4,2425.0,10.6668]
[1750444392186,1.8251,2425.6,2425.4,0.82452]
[1750444392388,1.8251,2425.6,2425.5,0.82452]
[1750444392876,1.8484,2425.7,2425.6,0.82448]
[1750444393078,2.67285,2425.7,2425.5,0.82451]
[1750444393283,1.8484,2425.7,2425.6,0.82448]
[1750444394375,1.8484,2425.7,2425.5,0.82449]
[1750444394678,2.67286,2425.7,2425.4,10.01353]
[1750444394878,1.8484,2425.7,2425.5,0.8245]
[1750444395275,1.8484,2425.7,2425.6,0.82448]
[1750444397281,1.8484,2425.7,2425.4,4.9368]
[1750444397581,1.8484,2425.7,2425.6,0.82448]
[1750444399883,1.8519,2426.0,2425.9,0.82438]
[1750444400087,4.9678,2426.1,2426.0,0.82435]
[1750444400088,5.79211,2426.1,2426.0,0.82435]